bitfinex-derivatives/quotes_ETHF0:USTF0_20250331
["timestamp","ask_amount","ask_price","bid_price","bid_amount"]
[1743464374634,3.83078,1825.5,1825.4,0.73496978]
[1743464376434,3.83078,1825.5,1825.4,1.83080978]
[1743464376636,3.83078,1825.5,1825.4,0.73496978]
[1743464377136,3.83078,1825.5,1825.4,0.73498057]
[1743464377341,3.83078,1825.5,1825.4,1.83082057]
[1743464379133,3.83078,1825.5,1825.4,1.83079481]
[1743464379338,3.83078,1825.5,1825.4,0.73495481]
[1743464379530,3.83078,1825.5,1825.4,1.83076232]
[1743464379832,3.83078,1825.5,1825.4,0.73492232]
[1743464381038,3.83078,1825.5,1825.4,0.00822729]
[1743464381237,3.83078,1825.5,1825.4,0.73438312]
[1743464381736,3.83078,1825.5,1825.4,1.83022312]
[1743464381941,3.83078,1825.5,1825.4,3.26252312]
[1743464383239,3.83078,1825.5,1825.4,3.26240469]
[1743464384742,4.41762729,1825.7,1825.6,1.09572]
[1743464384944,5.95048729,1825.7,1825.6,1.82158262]
[1743464385243,7.30948729,1825.7,1825.6,1.82157644]
[1743464385548,2.56882729,1825.7,1825.6,1.82157644]
[1743464385844,0.00822729,1825.7,1825.6,5.02937644]
[1743464386044,0.00822729,1825.7,1825.6,6.30757644]
[1743464387247,0.00822729,1825.7,1825.6,6.30700908]
[1743464387745,0.00822729,1825.7,1825.6,6.30660183]
[1743464391247,0.00822729,1825.7,1825.6,6.30600365]
[1743464392448,0.00822729,1825.7,1825.6,5.02780365]
[1743464392649,0.00822729,1825.7,1825.6,1.82000365]
[1743464392841,1.47502729,1825.7,1825.6,1.82000365]
[1743464393047,1.47502729,1825.7,1825.6,3.19670365]
[1743464393248,1.47502729,1825.7,1825.6,3.1967315]
[1743464394446,5.11902729,1825.7,1825.6,3.1967315]
[1743464395760,5.11902729,1825.7,1825.6,2.47242]
[1743464396054,5.11902729,1825.7,1825.6,3.19664652]
[1743464397352,5.11902729,1825.7,1825.6,3.19661728]
[1743464399153,5.11902729,1825.7,1825.6,1.81991728]
[1743464399548,1.09572,1825.6,1825.5,1.09575]
[1743464399754,2.721,1825.6,1825.5,1.82007987]
[1743464400149,2.721,1825.6,1825.5,1.09575]
[1743464400351,3.81675,1825.6,1825.5,1.09578]
[1743464400654,2.721,1825.6,1825.5,1.09578]
[1743464400854,2.721,1825.6,1825.5,1.81988556]
[1743464401158,2.721,1825.6,1825.5,1.81978478]
[1743464401849,2.721,1825.6,1825.5,3.20288478]
[1743464402560,1.2745,1825.6,1825.5,3.20288478]
[1743464402748,1.38182729,1825.7,1825.6,1.09572]
[1743464402949,1.38182729,1825.7,1825.6,3.19759995]
[1743464403355,1.38182729,1825.7,1825.6,3.19752089]
[1743464403551,1.38182729,1825.7,1825.6,3.19754309]
[1743464404346,1.38182729,1825.7,1825.6,0.72382309]
[1743464404653,1.38182729,1825.7,1825.5,1.09574]
[1743464404857,1.2261,1825.6,1825.5,1.09574]
[1743464405051,1.2261,1825.6,1825.5,1.81979293]
[1743464405354,2.5997,1825.6,1825.5,1.81979293]
[1743464405753,2.5997,1825.6,1825.5,3.29079293]
[1743464405959,0.00822729,1825.7,1825.6,1.09572]
[1743464406260,0.00822729,1825.7,1825.6,3.29077293]
[1743464406455,1.37772729,1825.7,1825.6,3.29077293]
[1743464409251,1.37772729,1825.7,1825.6,3.29106985]
[1743464409558,1.37772729,1825.7,1825.6,2.56672]
[1743464410055,1.37772729,1825.7,1825.6,3.29126284]
[1743464411052,1.37772729,1825.7,1825.6,2.56672]
[1743464411356,1.37772729,1825.7,1825.6,3.29171219]
[1743464411662,1.37772729,1825.7,1825.6,3.29177431]
[1743464413156,1.37772729,1825.7,1825.6,2.56672]
[1743464413355,1.09572,1825.6,1825.5,1.09574]
[1743464413865,1.37772729,1825.7,1825.6,1.09572]
[1743464414053,5.02072729,1825.7,1825.6,1.09572]
[1743464416256,6.11638729,1825.7,1825.6,1.09572]
[1743464417362,5.02072729,1825.7,1825.6,1.09572]
[1743464420565,1.37772729,1825.7,1825.6,1.09572]
[1743464421866,1.37772729,1825.7,1825.6,2.57602]
[1743464425167,0.00822729,1825.7,1825.6,5.78382]
[1743464431870,1.24362729,1825.7,1825.6,5.78382]
[1743464432474,2.44732729,1825.7,1825.6,5.78382]
[1743464432968,0.00822729,1825.7,1825.6,5.78382]
[1743464440276,7.29e-06,1825.7,1825.6,5.78382]
[1743464440577,5.906,1826.7,1826.6,1.09512]
[1743464440772,3.642,1826.8,1826.7,1.09506]
[1743464441572,3.642,1826.8,1826.7,4.30281]
[1743464441777,7.6228,1826.8,1826.7,1.09501]
[1743464446881,1.09506,1826.7,1826.6,1.10328729]
[1743464447079,1.4303,1826.7,1826.6,1.10328729]
[1743464447576,2.52536,1826.7,1826.6,0.00822729]
[1743464447780,1.09512,1826.6,1826.5,4.30294]
[1743464447974,1.09512,1826.6,1826.2,4.6781]
[1743464447975,1.4303,1826.6,1826.2,4.6781]
[1743464448179,1.0953,1826.3,1826.2,4.30314]
[1743464448483,1.0953,1826.3,1826.2,1.09534]
[1743464449274,2.4965,1826.3,1826.2,1.09534]
[1743464449482,1.09536,1826.2,1826.1,1.10360729]
[1743464449780,1.4012,1826.7,1826.2,2.73827]
[1743464449974,1.4012,1826.3,1826.2,1.09536]
[1743464450174,1.4012,1826.3,1826.2,5.02924067]
[1743464451777,1.1943,1826.4,1826.3,1.0953]
[1743464451984,2.6626,1826.4,1826.3,1.0953]
[1743464457983,2.6626,1826.4,1826.2,4.30312]
[1743464458182,6.2113,1826.3,1826.2,1.09536]
[1743464460481,5.116,1826.3,1826.2,1.09536]
[1743464460990,6.2113,1826.3,1826.2,1.09536]
[1743464461387,5.116,1826.3,1826.2,1.09536]
[1743464461688,6.2113,1826.3,1826.2,1.09536]
[1743464461885,5.116,1826.3,1826.2,1.09536]
[1743464462394,1.1943,1826.4,1826.3,1.0953]
[1743464462782,1.1943,1826.4,1826.3,2.48]
[1743464462983,4.8872,1826.5,1826.4,1.09524]
[1743464463288,4.8872,1826.5,1826.4,5.68774]
[1743464463692,3.64,1826.5,1826.4,5.68774]
[1743464466492,5.0941,1826.5,1826.4,5.68774]
[1743464468494,5.0941,1826.5,1826.4,2.47994]
[1743464470390,5.0941,1826.5,1826.4,3.20827791]
[1743464471899,5.0941,1826.5,1826.4,3.20835981]
[1743464473798,5.0941,1826.5,1826.4,6.41615981]
[1743464474389,5.0941,1826.5,1826.4,6.41613796]
[1743464475293,12.09528,1826.5,1826.4,1.95759796]
[1743464475494,13.0679,1826.5,1826.1,0.00822729]
[1743464475693,5.0,1826.4,1826.3,1.0953]
[1743464476293,5.0,1826.4,1826.3,2.5334]
[1743464476692,6.09524,1826.4,1826.3,2.5334]
[1743464477000,6.09524,1826.4,1826.3,1.4381]
[1743464477693,6.09524,1826.4,1826.3,2.5334]
[1743464477895,1.0953,1826.3,1826.2,1.09531]
[1743464478100,2.4563,1826.3,1826.2,1.09531]
[1743464478491,3.7138,1826.3,1826.2,1.09531]
[1743464478809,5.0214,1826.3,1826.2,1.09531]
[1743464479198,1.09536,1826.2,1826.1,1.10360729]
[1743464479398,2.59306,1826.2,1826.1,1.10360729]
[1743464480597,1.4977,1826.2,1826.1,1.10360729]
[1743464481405,2.59306,1826.2,1826.1,1.10360729]
[1743464485805,3.2078,1826.3,1826.2,1.09536]
[1743464486004,3.639,1826.3,1826.2,2.54396]
[1743464486701,5.1392,1826.3,1826.2,2.54396]
[1743464487002,6.2345,1826.3,1826.2,2.54396]
[1743464487208,7.5233,1826.3,1826.2,2.54396]
[1743464490211,1.09536,1826.2,1826.1,0.00822729]
[1743464490403,2.51816,1826.2,1826.1,0.00822729]
[1743464490608,1.09548,1826.0,1825.9,1.09548]
[1743464490808,4.73448,1826.0,1825.9,1.09548]
[1743464491204,7.22438,1826.0,1825.9,1.09548]
[1743464492209,1.4552,1826.1,1826.0,1.09548]
[1743464492210,5.0942,1826.1,1826.0,1.09548]
[1743464492415,5.0942,1826.1,1826.0,2.53978]
[1743464492808,6.18962,1826.1,1826.0,2.53978]
[1743464493208,7.47562,1826.1,1826.0,1.09548]
[1743464494417,1.09548,1826.0,1825.9,1.0955]
[1743464494612,2.50988,1826.0,1825.9,1.0955]
[1743464496920,1.4144,1826.0,1825.9,1.0955]
[1743464497311,2.50988,1826.0,1825.9,1.0955]
[1743464499815,2.50988,1826.0,1825.8,1.48902729]
[1743464499816,1.09554,1825.9,1825.8,0.00822729]
[1743464500119,3.85124,1825.9,1825.8,0.00822729]
[1743464501309,3.85124,1825.9,1825.8,1.10382729]
[1743464501508,2.7557,1825.9,1825.8,1.10382729]
[1743464501714,3.85124,1825.9,1825.8,1.10382729]
[1743464502515,1.4712,1825.9,1825.8,3.66022729]
[1743464502816,3.639,1826.0,1825.9,1.09554]
[1743464503320,3.639,1826.2,1826.1,1.09542]
[1743464504117,5.12,1826.2,1826.1,3.62322]
[1743464505414,5.12,1826.2,1826.1,4.34667739]
[1743464506010,3.639,1826.2,1826.1,4.34667739]
[1743464506421,3.639,1826.2,1826.1,4.34668088]
[1743464506922,3.639,1826.2,1826.1,4.34668794]
[1743464508411,3.639,1826.2,1826.1,4.34668384]
[1743464508724,1.3586,1826.3,1826.2,1.09536]
[1743464508924,1.3586,1826.3,1826.2,2.50606]
[1743464509324,2.4539,1826.3,1826.2,1.4107]
[1743464509520,2.4539,1826.3,1826.1,2.5278]
[1743464509521,1.09542,1826.2,1825.9,3.2078]
[1743464509725,1.4934,1826.1,1826.0,3.2297501]
[1743464512524,1.4934,1826.1,1826.0,3.22973955]
[1743464513628,7.94208,1826.4,1826.3,1.0953]
[1743464513828,7.94208,1826.4,1826.0,4.14929]
[1743464514029,7.94208,1826.4,1826.2,1.09531]
[1743464514330,7.94208,1826.4,1826.3,1.0953]
[1743464515136,9.42128,1826.4,1826.3,1.0953]
[1743464515343,6.21348,1826.4,1826.3,1.0953]
[1743464515534,5.1182,1826.4,1826.2,1.4238]
[1743464515742,2.5745,1826.3,1826.2,2.5191]
[1743464515940,2.5745,1826.3,1826.2,1.0953]
[1743464524149,1.4792,1826.3,1826.2,1.0953]
[1743464525051,1.4792,1826.3,1826.2,2.4027]
[1743464525548,1.4792,1826.3,1826.2,3.6886]
[1743464526951,2.5745,1826.3,1826.2,3.6886]
[1743464527149,2.5745,1826.3,1826.2,1.0953]
[1743464528755,1.4792,1826.3,1826.2,1.0953]
[1743464528953,2.5745,1826.3,1826.2,1.0953]
[1743464529455,1.09536,1826.2,1826.1,1.09537]
[1743464529643,5.12866,1826.2,1826.1,1.09537]
[1743464529845,5.12866,1826.2,1825.9,7.39111]
[1743464529846,1.09548,1826.1,1826.0,1.09545]
[1743464530047,1.488,1826.1,1826.0,1.8195778]
[1743464530249,1.488,1826.1,1826.0,3.2801778]
[1743464530447,1.488,1826.1,1826.0,3.280142]
[1743464534257,3.638,1826.2,1826.1,1.09542]
[1743464534449,3.638,1826.2,1826.1,3.24168662]
[1743464535054,5.0405,1826.2,1826.1,3.24168662]
[1743464535455,1.4025,1826.2,1826.1,3.24168662]
[1743464536553,3.2078,1826.6,1826.5,1.09518]
[1743464536759,3.8412,1826.6,1826.5,1.09518]
[1743464536952,3.8412,1826.6,1826.5,1.81933508]
[1743464538459,3.8412,1826.6,1826.5,1.09518]
[1743464540054,3.8412,1826.6,1826.5,2.34498]
[1743464540665,3.8412,1826.6,1826.5,3.06802046]
[1743464540959,3.8412,1826.6,1826.5,1.09518]
[1743464541169,3.8412,1826.6,1826.5,1.81822849]
[1743464541665,3.8412,1826.6,1826.5,4.47862849]
[1743464542257,3.8412,1826.6,1826.5,3.75558]
[1743464543058,3.2078,1826.8,1826.7,1.09506]
[1743464543357,0.00822729,1826.9,1826.8,1.095]
[1743464543765,1.44642729,1826.9,1826.8,1.095]
[1743464543958,1.44642729,1826.9,1826.8,2.485]
[1743464544265,1.44642729,1826.9,1826.6,1.09509]
[1743464544266,4.65422729,1826.9,1826.6,1.09509]
[1743464544566,7.20093,1826.8,1826.5,1.39]
[1743464544864,7.5441,1826.8,1826.7,1.09506]
[1743464545156,6.1059,1826.8,1826.7,1.09506]
[1743464545957,1.09506,1826.7,1826.6,2.59556]
[1743464546158,6.1059,1826.8,1826.7,1.09506]
[1743464547263,7.2009,1826.8,1826.7,1.09506]
[1743464547465,6.1059,1826.8,1826.7,1.09506]
[1743464548164,2.4689,1826.8,1826.7,1.09506]
[1743464548468,3.64522729,1826.9,1826.8,1.095]
[1743464548653,4.87312729,1826.9,1826.8,1.095]
[1743464549067,4.87312729,1826.9,1826.8,2.5491]
[1743464549658,5.96806729,1826.9,1826.8,1.4541]
[1743464549966,1.095,1826.8,1826.7,2.38452]
[1743464550162,1.095,1826.8,1826.7,3.83862]
[1743464550664,1.095,1826.8,1826.7,2.54912]
[1743464550858,1.09506,1826.7,1826.6,1.09508]
[1743464551364,1.09505,1826.8,1826.7,1.09504]
[1743464551566,1.09509,1826.7,1826.6,1.09509]
[1743464551761,1.09504,1826.8,1826.7,1.09502]
[1743464551961,1.09509,1826.7,1826.6,1.09507]
[1743464553969,1.09512,1826.6,1826.5,1.09513]
[1743464554172,3.57532,1826.6,1826.5,1.09513]
[1743464554770,2.4802,1826.6,1826.5,1.09513]
[1743464556172,2.4802,1826.6,1826.4,2.5191]
[1743464556365,1.09518,1826.5,1826.4,2.5191]
[1743464561164,7.21237,1826.6,1826.5,1.09518]
[1743464561370,6.1172,1826.6,1826.4,1.4239]
[1743464561572,1.09518,1826.5,1826.4,2.51909]
[1743464561770,7.21237,1826.6,1826.5,1.09518]
[1743464562267,8.69107,1826.6,1826.5,1.09518]
[1743464564676,1.09518,1826.5,1826.4,2.5191]
[1743464564874,2.56068,1826.5,1826.4,2.5191]
[1743464565175,2.56068,1826.5,1826.4,1.0952]
[1743464565969,1.4655,1826.5,1826.4,1.0952]
[1743464566276,1.4655,1826.5,1826.4,1.81840205]
[1743464567574,1.4655,1826.5,1826.4,1.81836977]
[1743464570974,2.56068,1826.5,1826.4,1.0952]
[1743464571189,1.4655,1826.5,1826.4,1.81852463]
[1743464572173,3.636,1826.6,1826.5,1.09518]
[1743464572479,5.113,1826.6,1826.5,2.57148]
[1743464572780,5.113,1826.6,1826.5,3.29472012]
[1743464573082,5.113,1826.6,1826.5,2.57148]
[1743464573279,6.20812,1826.6,1826.5,2.57148]
[1743464574177,6.20812,1826.6,1826.5,1.09518]
[1743464577279,5.113,1826.6,1826.5,1.09518]
[1743464577478,5.113,1826.6,1826.5,2.40838]
[1743464577883,5.113,1826.6,1826.5,3.68498]
[1743464578582,6.20812,1826.6,1826.5,3.68498]
[1743464579386,6.20812,1826.6,1826.5,4.40874172]
[1743464580086,5.113,1826.6,1826.5,4.40874172]
[1743464580279,6.20812,1826.6,1826.5,4.40874172]
[1743464582681,1.10319729,1826.9,1826.5,3.31385839]
[1743464582889,1.10319729,1826.9,1826.8,1.095]
[1743464587781,1.09511,1826.7,1826.5,2.5898]
[1743464587993,1.09511,1826.7,1826.6,1.09508]
[1743464588180,4.73011,1826.7,1826.6,1.09508]
[1743464588988,3.635,1826.7,1826.6,1.09508]
[1743464589190,4.73006,1826.7,1826.6,1.09508]
[1743464589393,3.635,1826.7,1826.6,3.27342402]
[1743464592993,3.635,1826.7,1826.6,3.27334319]
[1743464593198,4.73006,1826.7,1826.6,3.27334319]
[1743464594197,3.635,1826.7,1826.6,3.27334319]
[1743464595997,4.73006,1826.7,1826.6,0.72326319]
[1743464596198,4.73006,1826.7,1825.9,5.6919]
[1743464596199,2.73797,1826.5,1825.9,5.6919]
[1743464596490,4.8873,1826.4,1826.1,1.0954]
[1743464596889,4.8873,1826.4,1826.0,2.48193]
[1743464596890,1.09536,1826.2,1826.0,2.48193]
[1743464597095,1.09536,1826.2,1825.9,5.6919]
[1743464597096,1.09536,1826.2,1826.1,1.418]
[1743464597591,1.09536,1826.2,1826.1,2.51342]
[1743464597996,1.09536,1826.2,1826.1,2.51337]
[1743464598198,1.09536,1826.2,1826.1,1.418]
[1743464598390,1.09554,1825.9,1825.8,0.00822729]
[1743464598596,1.09554,1825.9,1825.8,0.7317153]
[1743464598795,1.09554,1825.9,1825.8,0.00822729]
[1743464598995,2.37744,1825.9,1825.8,0.00822729]
[1743464600401,4.4897,1825.9,1825.5,1.09578]
[1743464600702,1.09572,1825.6,1825.5,1.4566]
[1743464601099,1.09572,1825.6,1825.4,1.09582]
[1743464601299,3.65638,1825.5,1825.4,1.09582]
[1743464601508,2.5606,1825.5,1825.4,1.09582]
[1743464601803,3.65638,1825.5,1825.3,1.46482729]
[1743464602205,2.5606,1825.5,1825.4,1.09584]
[1743464602506,3.9815,1825.5,1825.4,1.09584]
[1743464607904,1.4209,1825.5,1825.4,1.09584]
[1743464608104,0.00822729,1825.6,1825.5,1.09578]
[1743464608302,0.00822729,1825.6,1825.5,3.85408]
[1743464609907,0.00822729,1825.6,1825.5,4.57375424]
[1743464613113,0.00822729,1825.6,1825.5,4.5738064]
[1743464615311,0.00822729,1825.6,1825.5,4.57406068]
[1743464617204,0.00822729,1825.6,1825.5,3.85408]
[1743464617413,0.00822729,1825.6,1825.5,4.57449395]
[1743464619317,0.00822729,1825.6,1825.5,4.57485343]
[1743464620122,0.00822729,1825.6,1825.5,5.81885343]
[1743464621518,0.00822729,1825.6,1825.5,5.81946314]
[1743464621915,0.00822729,1825.6,1825.5,5.81945838]
[1743464623523,0.00822729,1825.6,1825.5,5.82015941]
[1743464625519,7.29e-06,1825.6,1825.5,5.82118364]
[1743464625713,7.29e-06,1825.6,1825.5,8.32118364]
[1743464627523,7.29e-06,1825.6,1825.5,8.32133847]
[1743464627726,7.29e-06,1825.6,1825.5,5.82133847]
[1743464629626,7.29e-06,1825.6,1825.5,5.8212932]
[1743464631628,7.29e-06,1825.6,1825.5,5.82135155]
[1743464632026,7.29e-06,1825.6,1825.5,9.02915155]
[1743464635034,7.29e-06,1825.6,1825.5,5.82135155]
[1743464635530,7.29e-06,1825.6,1825.5,9.02915155]
[1743464637936,7.29e-06,1825.6,1825.5,9.03033936]
[1743464639233,1.2459,1825.9,1825.5,10.67390936]
[1743464639427,1.22944542,1825.9,1825.8,4.3034]
[1743464639733,3.634,1826.4,1826.3,1.0953]
[1743464639932,3.2078,1826.7,1826.6,1.09512]
[1743464640235,6.8418,1826.7,1826.6,1.09512]
[1743464640434,9.3418,1826.7,1826.6,1.09512]
[1743464640631,10.43686,1826.7,1826.5,1.10335729]
[1743464640834,7.93686,1826.7,1826.5,1.10335729]
[1743464641236,7.93686,1826.7,1826.6,1.09512]
[1743464641534,4.72906,1826.7,1826.6,1.09512]
[1743464641736,7.22906,1826.7,1826.6,1.09512]
[1743464642335,10.7236,1826.7,1826.5,0.00822729]
[1743464642640,2.7218,1826.6,1826.5,1.10340729]
[1743464642840,4.0525,1826.6,1826.5,1.10340729]
[1743464643837,5.14762,1826.6,1826.5,1.10340729]
[1743464644843,4.0525,1826.6,1826.5,1.10340729]
[1743464645140,4.0525,1826.6,1826.5,1.82681044]
[1743464645345,4.0525,1826.6,1826.5,1.82678673]
[1743464645739,4.0525,1826.6,1826.5,1.10340729]
[1743464645944,4.0525,1826.6,1826.5,1.82643872]
[1743464647242,4.0525,1826.6,1826.5,1.82619938]
[1743464647441,4.0525,1826.6,1826.5,1.82614748]
[1743464647645,4.0525,1826.6,1826.5,1.10340729]
[1743464648339,5.14762,1826.6,1826.5,0.00822729]
[1743464649249,8.35542,1826.6,1826.5,0.00822729]
[1743464649848,12.49815,1826.6,1826.3,1.09529]
[1743464650050,1.09529,1826.4,1826.3,1.09529]
[1743464650248,4.72729,1826.4,1826.3,1.09529]
[1743464653152,4.72724,1826.4,1826.3,1.09529]
[1743464656456,1.0953,1826.3,1826.2,0.00822729]
[1743464656654,5.1106,1826.3,1826.2,0.00822729]
[1743464666365,1.0956,1825.9,1825.7,3.2078]
[1743464666555,3.632,1825.9,1825.8,1.4429]
[1743464666760,4.72754,1825.9,1825.8,2.53847]
[1743464666954,7.27444,1825.9,1825.8,2.53847]
[1743464668165,6.1789,1825.9,1825.8,2.53847]
[1743464668566,7.27444,1825.9,1825.8,2.53847]
[1743464669357,7.27444,1825.9,1825.8,1.4429]
[1743464670065,7.27444,1825.9,1825.7,0.00548488]
[1743464670066,1.0956,1825.8,1825.7,0.00548488]
[1743464670261,4.3034,1825.8,1825.7,0.00548488]
[1743464680472,1.09602,1825.1,1825.0,1.09602]
[1743464680663,4.72796,1825.2,1825.1,2.7595]
[1743464681069,5.93446,1825.2,1825.1,1.4397]
[1743464682171,1.09608,1825.0,1824.9,1.2455]
[1743464683672,2.57468,1825.0,1824.9,2.6762]
[1743464684273,2.57468,1825.0,1824.9,3.77234]
[1743464684473,2.57468,1825.0,1824.9,2.6762]
[1743464684781,3.632,1825.1,1824.9,2.6762]
[1743464684981,4.72802,1825.1,1825.0,2.52678]
[1743464685480,3.632,1825.1,1825.0,2.52678]
[1743464691377,3.632,1825.6,1825.5,1.09574]
[1743464691583,3.632,1825.6,1825.2,2.73977]
[1743464691584,7.93551,1825.7,1825.4,1.09579]
[1743464691880,1.09572,1825.6,1825.5,2.5682]
[1743464692577,1.09572,1825.6,1825.5,5.11288]
[1743464693374,2.45122,1825.6,1825.5,5.11288]
[1743464693581,2.45122,1825.6,1825.5,2.764]
[1743464693878,3.72392,1825.6,1825.5,1.4489]
[1743464694984,5.01392,1825.6,1825.5,1.4489]
[1743464695286,5.01392,1825.6,1825.5,2.54468]
[1743464698182,5.01392,1825.6,1825.5,1.4489]
[1743464698382,5.01392,1825.6,1825.5,2.54468]
[1743464698884,5.01392,1825.6,1825.5,1.4489]
[1743464700282,1.09584,1825.4,1825.3,1.3215]
[1743464700483,9.57843,1825.4,1824.8,5.94829]
[1743464700680,1.09606,1825.1,1825.0,1.09605]
[1743464700979,1.09599,1825.2,1825.1,1.09599]
[1743464701179,4.72699,1825.2,1825.1,1.09599]
[1743464701683,1.09602,1825.1,1825.0,5.11424]
[1743464702786,1.09602,1825.1,1825.0,4.0182]
[1743464703186,1.09602,1825.1,1825.0,5.11428]
[1743464704687,1.09602,1825.1,1825.0,4.0182]
[1743464705586,4.727,1825.2,1825.1,1.09602]
[1743464705785,4.727,1825.2,1825.1,2.57612]
[1743464706389,1.096,1825.2,1825.1,2.57612]
[1743464706683,4.727,1825.2,1825.1,2.57612]
[1743464706883,4.72696,1825.2,1825.1,2.57612]
[1743464707680,4.72696,1825.2,1825.1,1.4801]
[1743464708084,1.09614,1824.9,1824.8,1.09615]
[1743464708288,1.0962,1824.8,1824.7,3.924]
[1743464708492,1.0962,1824.8,1824.7,4.64854363]
[1743464708901,1.0962,1824.8,1824.7,5.74475363]
[1743464709591,1.4586,1824.8,1824.7,5.74475363]
[1743464710091,1.4586,1824.8,1824.7,5.7448576]
[1743464710491,1.4586,1824.8,1824.7,5.74487245]
[1743464710989,1.4586,1824.8,1824.7,5.74487411]
[1743464711194,1.4586,1824.8,1824.7,5.74480588]
[1743464711392,2.5548,1824.8,1824.7,5.74480588]
[1743464711587,1.09632,1824.6,1824.5,1.09634]
[1743464711788,4.72732,1824.6,1824.5,1.82095928]
[1743464711989,4.72732,1824.6,1824.5,1.82096119]
[1743464712290,4.72732,1824.6,1824.4,5.7445]
[1743464712291,6.21567,1824.6,1824.4,5.7445]
[1743464712487,6.21567,1824.6,1824.5,1.4403]
[1743464712884,6.21567,1824.6,1824.5,2.53668]
[1743464713392,6.21567,1824.6,1824.5,1.4403]
[1743464714491,1.09644,1824.4,1824.3,2.5791]
[1743464714797,4.30424,1824.4,1824.3,1.3891]
[1743464715093,1.09656,1824.2,1824.1,1.09659]
[1743464715286,4.72756,1824.2,1824.0,3.9215]
[1743464715489,4.72756,1824.2,1824.0,3.62905]
[1743464715490,1.09662,1824.1,1824.0,3.62905]
[1743464715694,2.49482,1824.1,1824.0,2.5324]
[1743464715894,2.49482,1824.1,1824.0,3.62908]
[1743464716190,1.3982,1824.1,1823.8,1.09675]
[1743464716388,1.09674,1823.9,1823.8,1.09675]
[1743464716588,3.631,1823.9,1823.6,2.5324]
[1743464716796,4.702,1823.8,1823.5,1.09695]
[1743464716983,2.5911,1823.7,1823.5,1.09695]
[1743464717189,5.1252,1823.6,1823.5,1.09693]
[1743464717896,1.09698,1823.5,1823.4,4.443]
[1743464718198,1.4942,1823.5,1823.4,1.2352]
[1743464718490,1.4942,1823.5,1823.4,2.33224]
[1743464718693,1.0969,1823.7,1823.4,1.2352]
[1743464718897,3.631,1823.5,1823.4,2.33224]
[1743464719091,3.2078,1823.8,1823.4,4.443]
[1743464719294,5.0415,1823.9,1823.8,1.0968]
[1743464719493,4.72777,1823.9,1823.7,1.09683]
[1743464719693,6.13827,1823.9,1823.8,1.2693]
[1743464721200,1.09684,1823.8,1823.5,1.2988]
[1743464721402,1.4105,1823.8,1823.7,1.09686]
[1743464721601,2.5073,1823.8,1823.7,1.09686]
[1743464721801,1.4105,1823.8,1823.7,1.09686]
[1743464722001,4.72779,1823.9,1823.6,1.2787]
[1743464722002,4.72779,1823.9,1823.8,1.0968]
[1743464722200,6.22149,1823.9,1823.8,1.0968]
[1743464722403,5.1247,1823.9,1823.8,1.0968]
[1743464722699,6.22144,1823.9,1823.8,1.0968]
[1743464723089,6.22144,1823.9,1823.7,1.09683]
[1743464723705,11.0307,1823.9,1823.6,2.02444]
[1743464724002,1.09712,1823.3,1823.1,1.0972]
[1743464724307,3.632,1823.2,1823.1,1.09722]
[1743464727195,5.6922,1823.5,1823.0,2.74322]
[1743464727400,3.633,1823.4,1823.3,1.0971]
[1743464727598,4.30481,1823.5,1823.4,1.09704]
[1743464727798,7.93781,1823.5,1823.4,1.09704]
[1743464728400,9.38421,1823.5,1823.4,1.09704]
[1743464728598,9.38421,1823.5,1823.3,1.09706]
[1743464728903,9.38421,1823.5,1823.4,1.09704]
[1743464729305,9.38421,1823.5,1823.3,1.09706]
[1743464729505,5.75121,1823.5,1823.4,1.09704]
[1743464729703,9.38421,1823.5,1823.3,1.09708]
[1743464730102,3.633,1823.4,1823.3,1.09708]
[1743464731400,3.633,1823.4,1823.2,2.38643]
[1743464731602,6.21839,1823.4,1823.2,2.38643]
[1743464731798,1.4883,1823.3,1823.2,2.38643]
[1743464733212,3.633,1823.4,1823.3,1.0971]
[1743464733413,4.73004,1823.4,1823.3,2.5821]
[1743464733613,3.633,1823.4,1823.3,2.5821]
[1743464733911,5.1213,1823.4,1823.3,2.5821]
[1743464734319,1.4883,1823.4,1823.3,2.5821]
[1743464734616,1.09688,1823.7,1823.6,1.09692]
[1743464734821,9.37578,1823.7,1823.6,1.09692]
[1743464735221,5.74278,1823.7,1823.6,1.09692]
[1743464735418,8.2789,1823.7,1823.6,1.09692]
[1743464735920,6.8408,1823.7,1823.6,1.09692]
[1743464736122,6.8408,1823.7,1823.6,2.33032]
[1743464738626,3.633,1823.7,1823.6,2.33032]
[1743464740620,3.633,1823.7,1823.6,3.75272]
[1743464741222,3.633,1823.7,1823.6,4.97162]
[1743464741523,2.5693,1823.8,1823.6,4.97162]
[1743464741524,3.633,1823.9,1823.6,6.61691]
[1743464741726,5.0788,1823.9,1823.8,1.0968]
[1743464741921,3.2078,1824.9,1823.9,2.74185]
[1743464742124,2.54196,1824.9,1824.7,1.09624]
[1743464742325,2.7824,1824.8,1824.7,1.09626]
[1743464744329,3.64622729,1824.9,1824.8,1.0962]
[1743464745226,0.00822729,1824.9,1824.8,1.0962]
[1743464747323,0.00822729,1824.9,1824.8,2.5937]
[1743464748427,0.00822729,1824.9,1824.7,3.2078]
[1743464748733,1.09625,1824.8,1824.6,1.50572729]
[1743464749031,1.4657,1824.7,1824.6,2.60204729]
[1743464749822,1.4657,1824.7,1824.6,0.00822729]
[1743464750022,2.56196,1824.7,1824.6,0.00822729]
[1743464750531,2.56196,1824.7,1824.6,1.10454729]
[1743464750731,1.4657,1824.7,1824.6,1.10454729]
[1743464751321,2.56196,1824.7,1824.6,1.10454729]
[1743464752528,2.56196,1824.7,1824.6,0.00822729]
[1743464752729,2.56196,1824.7,1824.4,1.3112]
[1743464752730,1.0965,1824.3,1824.2,1.09651]
[1743464752927,4.73749,1824.4,1824.3,1.0965]